fUST/lending_fUST_20250701
["ID","MTS","AMOUNT","RATE_DAILY","PERIOD"]
[368834724,1751375461725,-25000.0,0.00019368,2]
[368834726,1751375461735,-993.20877856,0.0001937,2]
[368834728,1751375461745,-500.0,0.00019373,2]
[368834730,1751375461755,-500.0,0.00019373,2]
[368834732,1751375461765,-500.0,0.00019373,2]
[368834734,1751375461775,-500.0,0.00019373,2]
[368834736,1751375461784,-260.08943646,0.00019373,2]
[368834738,1751375461794,-501.04311643,0.00019373,2]
[368834740,1751375461804,-500.0,0.00019373,2]
[368834742,1751375461813,-160.06835831,0.00019373,2]
[368834744,1751375461822,-8464.31541756,0.00019383,2]
[368834746,1751375461832,-1029.95750337,0.00019425,2]
[368834749,1751375461842,-500.37836974,0.00019458,2]
[368834751,1751375461852,-1068.065931,0.0001948,2]
[368834753,1751375461862,-151.0,0.000195,2]
[368834755,1751375461871,-1107.58437044,0.00019535,2]
[368834757,1751375461881,-151.0,0.00019553,2]
[368834758,1751375461890,-151.0,0.00019553,2]
[368834760,1751375461900,-460.0,0.00019562,2]
[368834763,1751375461910,-460.0,0.00019562,2]
[368834765,1751375461921,-2375.85,0.00019562,2]
[368834766,1751375461932,-460.0,0.00019562,2]
[368834768,1751375461943,-2481.69,0.00019563,2]
[368834770,1751375461953,-595.26,0.00019563,2]
[368834772,1751375461963,-517.43,0.00019563,2]
[368834774,1751375461974,-460.0,0.00019563,2]
[368834777,1751375461984,-2638.53,0.00019563,2]
[368834779,1751375461994,-2689.06,0.00019563,2]
[368834780,1751375462003,-642.95,0.00019563,2]
[368834782,1751375462013,-460.0,0.00019563,2]
[368834784,1751375462023,-2422.25,0.00019563,2]
[368834787,1751375462034,-3359.88,0.00019563,2]
[368834788,1751375462043,-460.0,0.00019563,2]
[368834791,1751375462054,-460.0,0.00019563,2]
[368834792,1751375462064,-1616.51,0.00019563,2]
[368834794,1751375462074,-460.0,0.00019563,2]
[368834796,1751375462083,-1927.65,0.00019563,2]
[368834798,1751375462094,-460.0,0.00019563,2]
[368834801,1751375462104,-705.67,0.00019563,2]
[368834803,1751375462114,-151.0,0.00019564,2]
[368834805,1751375462123,-299.731675,0.00019564,2]
[368834806,1751375462135,-151.0,0.00019564,2]
[368834808,1751375462145,-299.731675,0.00019564,2]
[368834810,1751375462155,-460.0,0.00019564,2]
[368834812,1751375462164,-460.0,0.00019564,2]
[368834814,1751375462177,-460.0,0.00019564,2]
[368834816,1751375462187,-775.82,0.00019564,2]
[368834818,1751375462197,-460.0,0.00019564,2]
[368834821,1751375462207,-460.0,0.00019564,2]
[368834823,1751375462217,-502.391511,0.00019564,2]
[368834825,1751375462227,-502.391511,0.00019564,2]
[368834826,1751375462237,-460.0,0.00019564,2]
[368834828,1751375462247,-460.0,0.00019564,2]
[368834831,1751375462257,-1036.36,0.00019564,2]
[368834833,1751375462267,-511.22,0.00019564,2]
[368834835,1751375462278,-529.41,0.00019564,2]
[368834837,1751375462288,-1113.07,0.00019564,2]
[368834839,1751375462298,-229.4,0.00019564,2]
[368834841,1751375462307,-555.41,0.00019564,2]
[368834843,1751375462317,-460.0,0.00019564,2]
[368834845,1751375462329,-554.69,0.00019564,2]
[368834847,1751375462339,-460.0,0.00019564,2]
[368834849,1751375462349,-460.0,0.00019564,2]
[368834851,1751375462359,-5098.55,0.00019564,2]
[368834852,1751375462369,-885.07,0.00019564,2]
[368834854,1751375462379,-460.0,0.00019564,2]
[368834856,1751375462389,-460.0,0.00019564,2]
[368834858,1751375462399,-1093.64,0.00019564,2]
[368834860,1751375462411,-1367.97,0.00019564,2]
[368834862,1751375462422,-460.0,0.00019564,2]
[368834865,1751375462433,-580.86,0.00019564,2]
[368834867,1751375462443,-460.0,0.00019565,2]
[368834869,1751375462454,-460.0,0.00019565,2]
[368834871,1751375462464,-562.33,0.00019565,2]
[368834873,1751375462474,-353.48,0.00019565,2]
[368834874,1751375462486,-460.0,0.00019565,2]
[368834876,1751375462496,-151.0,0.00019565,2]
[368834878,1751375462507,-151.0,0.00019565,2]
[368834880,1751375462517,-151.0,0.00019565,2]
[368834882,1751375462527,-151.0,0.00019565,2]
[368834884,1751375462536,-460.0,0.00019565,2]
[368834886,1751375462546,-460.0,0.00019565,2]
[368834900,1751375462669,-902.98,0.00019565,2]
[368834903,1751375462681,-1429.29,0.00019565,2]
[368834905,1751375462692,-460.0,0.00019565,2]
[368834907,1751375462702,-460.0,0.00019565,2]
[368834909,1751375462711,-460.0,0.00019565,2]
[368834910,1751375462720,-629.44,0.00019565,2]
[368834912,1751375462730,-2335.14,0.00019565,2]
[368834914,1751375462739,-460.0,0.00019565,2]
[368834916,1751375462749,-763.4,0.00019565,2]
[368834918,1751375462759,-786.9,0.00019565,2]
[368834920,1751375462769,-1640.44,0.00019565,2]
[368834922,1751375462778,-460.0,0.00019565,2]
[368834924,1751375462788,-1403.77,0.00019565,2]
[368834926,1751375462798,-5761.22,0.00019565,2]
[368834928,1751375462807,-460.0,0.00019565,2]
[368834930,1751375462818,-1823.42,0.00019565,2]
[368834931,1751375462827,-460.0,0.00019565,2]
[368834933,1751375462837,-151.0,0.00019566,2]
[368834935,1751375462847,-241.229824,0.00019566,2]
[368834937,1751375462856,-241.229824,0.00019566,2]
[368834939,1751375462866,-342.612274,0.00019566,2]
[368834941,1751375462876,-342.612274,0.00019566,2]
[368834943,1751375462885,-460.0,0.00019567,2]
[368834945,1751375462894,-160.07193967,0.00019578,2]
[368834947,1751375462904,-160.07069701,0.00019578,2]
[368834949,1751375462913,-500.0,0.00019578,2]
[368834951,1751375462923,-160.07069689,0.00019578,2]
[368834953,1751375462933,-153.32567748,0.00019578,2]
[368834955,1751375462943,-160.07069701,0.00019578,2]
[368834956,1751375462952,-500.10070378,0.00019578,2]
[368834958,1751375462962,-500.40553689,0.00019578,2]
[368834960,1751375462972,-543.72233606,0.00019578,2]
[368834962,1751375462981,-500.0,0.00019578,2]
[368834964,1751375462990,-600.0,0.00019578,2]
[368834966,1751375462999,-360.00832558,0.00019578,2]
[368834968,1751375463008,-403.62083257,0.0001959,2]
[368834970,1751375463018,-8464.31541756,0.00019624,2]
[368834972,1751375463027,-151.0,0.000198,2]
[368834974,1751375463036,-460.0,0.00019836,2]
[368834976,1751375463045,-460.0,0.00019836,2]
[368834978,1751375463055,-2375.85,0.00019836,2]
[368834980,1751375463064,-460.0,0.00019836,2]
[368834982,1751375463074,-2481.69,0.00019837,2]
[368834984,1751375463084,-595.26,0.00019837,2]
[368834986,1751375463094,-517.43,0.00019837,2]
[368834988,1751375463103,-460.0,0.00019837,2]
[368834989,1751375463113,-2638.53,0.00019837,2]
[368834991,1751375463122,-2689.06,0.00019837,2]
[368834993,1751375463132,-642.95,0.00019837,2]
[368834995,1751375463141,-460.0,0.00019837,2]
[368834997,1751375463151,-2422.25,0.00019837,2]
[368834999,1751375463160,-460.0,0.00019837,2]
[368835001,1751375463169,-460.0,0.00019837,2]
[368835003,1751375463179,-1616.51,0.00019837,2]
[368835005,1751375463189,-478.0,0.00019837,2]
[368835007,1751375463198,-1927.65,0.00019837,2]
[368835009,1751375463208,-460.0,0.00019837,2]
[368835011,1751375463218,-705.67,0.00019837,2]
[368835013,1751375463227,-460.0,0.00019838,2]
[368835015,1751375463237,-460.0,0.00019838,2]
[368835017,1751375463247,-460.0,0.00019838,2]
[368835018,1751375463256,-775.82,0.00019838,2]
[368835020,1751375463266,-507.92,0.00019838,2]
[368835022,1751375463275,-460.0,0.00019838,2]
[368835024,1751375463285,-460.0,0.00019838,2]
[368835026,1751375463295,-460.0,0.00019838,2]
[368835028,1751375463304,-1036.36,0.00019838,2]
[368835030,1751375463314,-511.22,0.00019838,2]
[368835032,1751375463323,-529.41,0.00019838,2]
[368835034,1751375463333,-1113.07,0.00019838,2]
[368835036,1751375463343,-555.41,0.00019838,2]
[368835038,1751375463352,-460.0,0.00019838,2]
[368835040,1751375463363,-554.69,0.00019838,2]
[368835042,1751375463372,-460.0,0.00019838,2]
[368835044,1751375463382,-460.0,0.00019838,2]
[368835046,1751375463392,-5098.55,0.00019838,2]
[368835048,1751375463402,-885.07,0.00019838,2]
[368835050,1751375463412,-230.45,0.00019838,2]
[368835052,1751375463424,-460.0,0.00019838,2]
[368835054,1751375463435,-1093.64,0.00019838,2]
[368835056,1751375463445,-1367.97,0.00019838,2]
[368835057,1751375463456,-180.35,0.00019838,2]
[368835059,1751375463467,-580.86,0.00019838,2]
[368835061,1751375463476,-460.0,0.00019839,2]
[368835063,1751375463485,-460.0,0.00019839,2]
[368835065,1751375463496,-562.33,0.00019839,2]
[368835067,1751375463506,-460.0,0.00019839,2]
[368835069,1751375463516,-151.0,0.00019839,2]
[368835071,1751375463525,-151.0,0.00019839,2]
[368835073,1751375463535,-460.0,0.00019839,2]
[368835075,1751375463545,-460.0,0.00019839,2]
[368835077,1751375463555,-902.98,0.00019839,2]
[368835079,1751375463565,-1429.29,0.00019839,2]
[368835081,1751375463574,-460.0,0.00019839,2]
[368835082,1751375463585,-327.75,0.00019839,2]
[368835084,1751375463595,-512.36,0.00019839,2]
[368835086,1751375463606,-629.44,0.00019839,2]
[368835088,1751375463615,-2335.14,0.00019839,2]
[368835090,1751375463625,-460.0,0.00019839,2]
[368835092,1751375463635,-763.4,0.00019839,2]
[368835094,1751375463644,-786.9,0.00019839,2]
[368835096,1751375463654,-1640.44,0.00019839,2]
[368835098,1751375463664,-1403.77,0.00019839,2]
[368835100,1751375463677,-5761.22,0.00019839,2]
[368835102,1751375463688,-1823.42,0.00019839,2]
[368835104,1751375463698,-460.0,0.00019839,2]
[368835106,1751375463708,-460.0,0.00019841,2]
[368835108,1751375463718,-151.0,0.00019842,2]
[368835110,1751375463728,-151.0,0.00019842,2]
[368835112,1751375463737,-151.0,0.00019842,2]
[368835114,1751375463746,-151.0,0.00019842,2]
[368835115,1751375463756,-329.834907,0.00019842,2]
[368835117,1751375463767,-329.834907,0.00019842,2]
[368835119,1751375463777,-188.23,0.00019842,2]
[368835121,1751375463786,-500.0,0.00019842,2]
[368835123,1751375463796,-502.17657218,0.00019842,2]
[368835125,1751375463806,-151.458768,0.00019843,2]
[368835127,1751375463816,-151.0,0.00019843,2]
[368835129,1751375463825,-172.521992,0.00019843,2]
[368835131,1751375463834,-172.521992,0.00019843,2]
[368835133,1751375463844,-8464.31541756,0.00019866,2]
[368835135,1751375463854,-1744.68676,0.000199,2]
[368835137,1751375463864,-256.041786,0.00019916,2]
[368835139,1751375463874,-151.0,0.00019916,2]
[368835141,1751375463884,-270.806773,0.00019916,2]
[368835142,1751375463893,-270.806773,0.00019916,2]
[368835144,1751375463903,-151.0,0.00019916,2]
[368835146,1751375463912,-151.0,0.00019916,2]
[368835148,1751375463923,-151.0,0.00019916,2]
[368835150,1751375463932,-151.0,0.00019916,2]
[368835152,1751375463942,-616.479557,0.00019916,2]
[368835154,1751375463951,-616.479557,0.00019916,2]
[368835156,1751375463961,-151.0,0.00019916,2]
[368835158,1751375463970,-756.105498,0.00019916,2]
[368835160,1751375463980,-151.0,0.00019916,2]
[368835162,1751375463990,-756.105498,0.00019916,2]
[368835164,1751375464000,-451.214272,0.00019916,2]
[368835166,1751375464010,-451.214272,0.00019916,2]
[368835168,1751375464020,-240.56344,0.00019916,2]
[368835170,1751375464030,-240.56344,0.00019916,2]
[368835172,1751375464040,-303.976092,0.00019916,2]
[368835174,1751375464050,-303.976092,0.00019916,2]
[368835176,1751375464059,-152.145735,0.00019916,2]
[368835178,1751375464069,-151.0,0.00019916,2]
[368835180,1751375464079,-151.0,0.00019916,2]
[368835182,1751375464089,-5000.0,0.00019916,2]
[368835184,1751375464099,-25000.0,0.00019916,2]
[368835186,1751375464109,-500.0,0.00019926,2]
[368835187,1751375464118,-500.0,0.00019926,2]
[368835189,1751375464128,-296.927388,0.00019948,2]
[368835191,1751375464138,-190.315045,0.00019948,2]
[368835193,1751375464148,-190.315045,0.00019948,2]
[368835194,1751375464159,-839.715903,0.00019948,2]
[368835195,1751375464170,-531.621476,0.00019948,2]
[368835196,1751375464179,-839.715903,0.00019948,2]
[368835197,1751375464188,-531.621476,0.00019948,2]
[368835198,1751375464198,-25958.59131797,0.0002,2]
[368835199,1751375464209,-1344.96,0.0002,2]
[368835200,1751375464219,-151.0,0.0002,2]
[368835201,1751375464229,-151.0,0.0002,2]
[368835202,1751375464239,-299.731675,0.0002,2]
[368835203,1751375464249,-151.0,0.0002,2]
[368835204,1751375464260,-299.731675,0.0002,2]
[368835205,1751375464270,-502.391511,0.0002,2]
[368835206,1751375464280,-502.391511,0.0002,2]
[368835207,1751375464291,-1724.131009,0.00020088,4]
[368835208,1751375464301,-151.0,0.000201,3]
[368835209,1751375464311,-8464.31541756,0.00020107,2]
[368835210,1751375464322,-460.0,0.0002011,2]
[368835211,1751375464332,-460.0,0.0002011,2]
[368835212,1751375464343,-2375.85,0.0002011,2]
[368835214,1751375464352,-460.0,0.0002011,2]
[368835216,1751375464362,-2481.69,0.00020111,2]
[368835217,1751375464372,-595.26,0.00020111,2]
[368835220,1751375464382,-517.43,0.00020111,2]
[368835222,1751375464391,-319.98,0.00020111,2]
[368835224,1751375464402,-2638.53,0.00020111,2]
[368835226,1751375464415,-2689.06,0.00020111,2]
[368835228,1751375464426,-642.95,0.00020111,2]
[368835230,1751375464436,-460.0,0.00020111,2]
[368835231,1751375464447,-2422.25,0.00020111,2]
[368835234,1751375464457,-460.0,0.00020111,2]
[368835236,1751375464467,-460.0,0.00020111,2]
[368835237,1751375464476,-1616.51,0.00020111,2]
[368835239,1751375464486,-1927.65,0.00020111,2]
[368835242,1751375464498,-460.0,0.00020111,2]
[368835244,1751375464507,-705.67,0.00020111,2]
[368835246,1751375464517,-460.0,0.00020112,2]
[368835247,1751375464527,-460.0,0.00020112,2]
[368835249,1751375464535,-460.0,0.00020112,2]
[368835251,1751375464545,-775.82,0.00020112,2]
[368835253,1751375464555,-460.0,0.00020112,2]
[368835255,1751375464565,-460.0,0.00020112,2]
[368835257,1751375464574,-460.0,0.00020112,2]
[368835259,1751375464584,-1036.36,0.00020112,2]
[368835262,1751375464594,-511.22,0.00020112,2]
[368835264,1751375464603,-529.41,0.00020112,2]
[368835266,1751375464612,-1113.07,0.00020112,2]
[368835268,1751375464625,-555.41,0.00020112,2]
[368835270,1751375464635,-460.0,0.00020112,2]
[368835272,1751375464644,-554.69,0.00020112,2]
[368835274,1751375464654,-460.0,0.00020112,2]
[368835276,1751375464664,-460.0,0.00020112,2]
[368835278,1751375464673,-5098.55,0.00020112,2]
[368835280,1751375464683,-885.07,0.00020112,2]
[368835282,1751375464692,-549.0,0.00020112,2]
[368835284,1751375464701,-1093.64,0.00020112,2]
[368835286,1751375464711,-1367.97,0.00020112,2]
[368835288,1751375464721,-580.86,0.00020112,2]
[368835290,1751375464731,-460.0,0.00020113,2]
[368835292,1751375464740,-460.0,0.00020113,2]
[368835294,1751375464749,-562.33,0.00020113,2]
[368835296,1751375464759,-460.0,0.00020113,2]
[368835298,1751375464769,-460.0,0.00020113,2]
[368835300,1751375464779,-460.0,0.00020113,2]
[368835302,1751375464789,-902.98,0.00020113,2]
[368835304,1751375464798,-1429.29,0.00020113,2]
[368835306,1751375464808,-312.75,0.00020113,2]
[368835308,1751375464818,-629.44,0.00020113,2]
[368835310,1751375464828,-2335.14,0.00020113,2]
[368835312,1751375464838,-460.0,0.00020113,2]
[368835314,1751375464848,-763.4,0.00020113,2]
[368835316,1751375464857,-786.9,0.00020113,2]
[368835318,1751375464867,-1640.44,0.00020113,2]
[368835320,1751375464877,-1403.77,0.00020113,2]
[368835322,1751375464888,-5761.22,0.00020113,2]
[368835324,1751375464898,-1823.42,0.00020113,2]
[368835326,1751375464908,-460.0,0.00020115,2]
[368835328,1751375464919,-151.0,0.00020116,2]
[368835330,1751375464929,-241.229824,0.00020116,2]
[368835332,1751375464939,-241.229824,0.00020116,2]
[368835334,1751375464948,-342.612274,0.00020116,2]
[368835336,1751375464957,-342.612274,0.00020116,2]
[368835338,1751375464967,-151.0,0.00020117,2]
[368835340,1751375464976,-151.0,0.00020117,2]
[368835342,1751375464985,-151.0,0.00020117,2]
[368835344,1751375464995,-3417.16781652,0.0002012,2]
[368835346,1751375465004,-604.50948688,0.00020126,2]
[368835348,1751375465014,-1200.0,0.00020126,2]
[368835350,1751375465023,-416.00574,0.00020187,2]
[368835352,1751375465033,-215.0738,0.00020189,2]
[368835354,1751375465043,-700.0,0.00020205,2]
[368835356,1751375465053,-151.0,0.0002022,2]
[368835370,1751375465174,-151.0,0.0002022,2]
[368835372,1751375465184,-151.0,0.0002022,2]
[368835374,1751375465194,-151.0,0.0002022,2]
[368835376,1751375465204,-151.0,0.0002022,2]
[368835378,1751375465213,-151.0,0.0002022,2]
[368835380,1751375465223,-349.98635425,0.0002022,2]
[368835382,1751375465233,-208.6699531,0.0002022,2]
[368835384,1751375465242,-833.84513257,0.0002022,2]
[368835386,1751375465252,-997.74302099,0.0002022,2]
[368835388,1751375465261,-3986.98111187,0.0002022,2]
[368835390,1751375465271,-151.0,0.0002022,2]
[368835392,1751375465281,-151.0,0.0002022,2]
[368835394,1751375465290,-151.0,0.00020227,2]
[368835396,1751375465299,-151.0,0.00020227,2]
[368835398,1751375465309,-1000.0,0.000203,2]
[368835400,1751375465319,-1000.0,0.000203,2]
[368835402,1751375465329,-1000.0,0.000203,2]
[368835404,1751375465338,-556.66,0.000203,2]
[368835406,1751375465347,-151.0,0.000203,3]
[368835408,1751375465357,-8464.31541756,0.00020348,3]
[368835410,1751375465367,-584.71144398,0.00020384,2]
[368835412,1751375465376,-173.8,0.00020384,2]
[368835414,1751375465386,-2375.85,0.00020384,2]
[368835416,1751375465395,-460.0,0.00020384,2]
[368835418,1751375465406,-2481.69,0.00020385,2]
[368835420,1751375465416,-595.26,0.00020385,2]
[368835422,1751375465429,-517.43,0.00020385,2]
[368835424,1751375465438,-2638.53,0.00020385,2]
[368835426,1751375465448,-2689.06,0.00020385,2]
[368835429,1751375465459,-642.95,0.00020385,2]
[368835431,1751375465468,-460.0,0.00020385,2]
[368835433,1751375465478,-151.494317,0.00020385,2]
[368835435,1751375465487,-151.0,0.00020385,2]
[368835436,1751375465497,-151.0,0.00020385,2]
[368835438,1751375465506,-2422.25,0.00020385,2]
[368835441,1751375465516,-151.0,0.00020385,2]
[368835443,1751375465527,-329.834907,0.00020385,2]
[368835445,1751375465536,-329.834907,0.00020385,2]
[368835447,1751375465546,-460.0,0.00020385,2]
[368835449,1751375465555,-364.78638687,0.00020385,2]
[368835451,1751375465564,-1616.51,0.00020385,2]
[368835453,1751375465574,-1927.65,0.00020385,2]
[368835455,1751375465584,-460.0,0.00020385,2]
[368835457,1751375465593,-705.67,0.00020385,2]
[368835459,1751375465602,-460.0,0.00020386,2]
[368835461,1751375465613,-249.4,0.00020386,2]
[368835462,1751375465622,-575.56,0.00020386,2]
[368835465,1751375465633,-775.82,0.00020386,2]
[368835467,1751375465642,-460.0,0.00020386,2]
[368835469,1751375465652,-460.0,0.00020386,2]
[368835471,1751375465663,-460.0,0.00020386,2]
[368835473,1751375465674,-1036.36,0.00020386,2]
[368835475,1751375465684,-511.22,0.00020386,2]
[368835477,1751375465693,-529.41,0.00020386,2]
[368835479,1751375465703,-1113.07,0.00020386,2]
[368835481,1751375465712,-555.41,0.00020386,2]
[368835483,1751375465722,-460.0,0.00020386,2]
[368835485,1751375465732,-554.69,0.00020386,2]
[368835487,1751375465742,-460.0,0.00020386,2]
[368835489,1751375465752,-460.0,0.00020386,2]
[368835492,1751375465761,-5098.55,0.00020386,2]
[368835494,1751375465771,-885.07,0.00020386,2]
[368835496,1751375465780,-1093.64,0.00020386,2]
[368835498,1751375465790,-1367.97,0.00020386,2]
[368835500,1751375465800,-580.86,0.00020386,2]
[368835502,1751375465810,-460.0,0.00020387,2]
[368835504,1751375465819,-224.29,0.00020387,2]
[368835506,1751375465832,-562.33,0.00020387,2]
[368835508,1751375465842,-460.0,0.00020387,2]
[368835510,1751375465852,-460.0,0.00020387,2]
[368835512,1751375465861,-460.0,0.00020387,2]
[368835514,1751375465872,-902.98,0.00020387,2]
[368835516,1751375465882,-1429.29,0.00020387,2]
[368835518,1751375465892,-629.44,0.00020387,2]
[368835520,1751375465901,-2335.14,0.00020387,2]
[368835522,1751375465910,-460.0,0.00020387,2]
[368835524,1751375465921,-763.4,0.00020387,2]
[368835526,1751375465931,-786.9,0.00020387,2]
[368835528,1751375465941,-1640.44,0.00020387,2]
[368835530,1751375465951,-1403.77,0.00020387,2]
[368835532,1751375465960,-5761.22,0.00020387,2]
[368835534,1751375465969,-1823.42,0.00020387,2]
[368835536,1751375465980,-322.59495984,0.00020389,2]
[368835538,1751375465990,-296.927388,0.0002039,2]
[368835541,1751375466000,-190.315045,0.0002039,2]
[368835543,1751375466010,-190.315045,0.0002039,2]
[368835545,1751375466020,-839.715903,0.0002039,2]
[368835547,1751375466030,-531.621476,0.0002039,2]
[368835549,1751375466039,-839.715903,0.0002039,2]
[368835551,1751375466048,-531.621476,0.0002039,2]
[368835553,1751375466057,-151.0,0.0002039,2]
[368835555,1751375466066,-151.0,0.0002039,2]
[368835557,1751375466076,-1000.0,0.000204,2]
[368835559,1751375466085,-160.56438757,0.00020453,2]
[368835561,1751375466094,-45795.97383368,0.00020454,2]
[368835562,1751375466103,-151.0,0.00020454,2]
[368835565,1751375466112,-172.521992,0.00020454,2]
[368835567,1751375466122,-172.521992,0.00020454,2]
[368835569,1751375466131,-151.0,0.00020454,2]
[368835571,1751375466141,-151.0,0.00020454,2]
[368835573,1751375466151,-270.806773,0.00020454,2]
[368835575,1751375466160,-270.806773,0.00020454,2]
[368835577,1751375466171,-151.0,0.00020454,2]
[368835579,1751375466180,-151.0,0.00020454,2]
[368835581,1751375466189,-151.0,0.00020454,2]
[368835583,1751375466198,-151.0,0.00020454,2]
[368835585,1751375466208,-616.479557,0.00020454,2]
[368835587,1751375466218,-616.479557,0.00020454,2]
[368835589,1751375466227,-151.0,0.00020454,2]
[368835591,1751375466236,-756.105498,0.00020454,2]
[368835593,1751375466245,-151.0,0.00020454,2]
[368835595,1751375466254,-756.105498,0.00020454,2]
[368835597,1751375466264,-451.214272,0.00020454,2]
[368835599,1751375466274,-451.214272,0.00020454,2]
[368835601,1751375466283,-240.56344,0.00020454,2]
[368835603,1751375466293,-240.56344,0.00020454,2]
[368835605,1751375466303,-303.976092,0.00020454,2]
[368835607,1751375466312,-303.976092,0.00020454,2]
[368835609,1751375466322,-5000.0,0.00020464,2]
[368835611,1751375466332,-25000.0,0.00020464,2]
[368835613,1751375466342,-151.0,0.00020474,2]
[368835615,1751375466351,-299.731675,0.00020474,2]
[368835617,1751375466360,-151.0,0.00020474,2]
[368835619,1751375466369,-299.731675,0.00020474,2]
[368835621,1751375466379,-502.391511,0.00020474,2]
[368835623,1751375466389,-502.391511,0.00020474,2]
[368835625,1751375466399,-8464.31541756,0.0002059,3]
[368835627,1751375466410,-847.53272281,0.0002059,3]
[368835629,1751375466421,-213.87551669,0.0002059,3]
[368835631,1751375466430,-1108.44,0.000206,2]
[368835633,1751375466440,-151.0,0.000206,2]
[368835635,1751375466451,-151.0,0.000206,2]
[368835637,1751375466461,-160.0,0.000206,3]
[368835639,1751375466471,-12571.40790328,0.000206,3]
[368835641,1751375466480,-2375.85,0.00020658,2]
[368835643,1751375466491,-460.0,0.00020658,2]
[368835645,1751375466503,-2481.69,0.00020659,2]
[368835647,1751375466514,-595.26,0.00020659,2]
[368835649,1751375466523,-517.43,0.00020659,2]
[368835651,1751375466533,-2638.53,0.00020659,2]
[368835653,1751375466543,-2689.06,0.00020659,2]
[368835655,1751375466552,-642.95,0.00020659,2]
[368835657,1751375466562,-460.0,0.00020659,2]
[368835659,1751375466571,-2422.25,0.00020659,2]
[368835661,1751375466580,-460.0,0.00020659,2]
[368835663,1751375466589,-1616.51,0.00020659,2]
[368835665,1751375466599,-1927.65,0.00020659,2]
[368835668,1751375466609,-460.0,0.00020659,2]
[368835670,1751375466618,-705.67,0.00020659,2]
[368835671,1751375466627,-460.0,0.0002066,2]
[368835673,1751375466636,-775.82,0.0002066,2]
[368835676,1751375466645,-460.0,0.0002066,2]
[368835678,1751375466655,-460.0,0.0002066,2]
[368835680,1751375466664,-460.0,0.0002066,2]
[368835682,1751375466673,-1036.36,0.0002066,2]
[368835684,1751375466683,-511.22,0.0002066,2]
[368835686,1751375466692,-529.41,0.0002066,2]
[368835688,1751375466702,-1113.07,0.0002066,2]
[368835689,1751375466711,-555.41,0.0002066,2]
[368835692,1751375466721,-460.0,0.0002066,2]
[368835694,1751375466731,-554.69,0.0002066,2]
[368835696,1751375466740,-460.0,0.0002066,2]
[368835698,1751375466750,-460.0,0.0002066,2]
[368835700,1751375466759,-5098.55,0.0002066,2]
[368835702,1751375466768,-885.07,0.0002066,2]
[368835704,1751375466777,-1093.64,0.0002066,2]
[368835706,1751375466787,-1367.97,0.0002066,2]
[368835708,1751375466797,-580.86,0.0002066,2]
[368835710,1751375466806,-456.78,0.00020661,2]
[368835712,1751375466815,-562.33,0.00020661,2]
[368835714,1751375466825,-460.0,0.00020661,2]
[368835716,1751375466834,-151.0,0.00020661,2]
[368835718,1751375466844,-151.0,0.00020661,2]
[368835720,1751375466855,-460.0,0.00020661,2]
[368835722,1751375466864,-460.0,0.00020661,2]